fUST/lending_fUST_20250908
["ID","MTS","AMOUNT","RATE_DAILY","PERIOD"]
[384242888,1757306702661,-484.65447887,0.00013698,2]
[384242889,1757306702682,-480.0,0.00013698,2]
[384242890,1757306702704,-483.46647316,0.00013698,2]
[384242891,1757306702726,-480.0,0.00013698,2]
[384242892,1757306702748,-481.94779864,0.00013698,2]
[384242893,1757306702769,-486.67668434,0.00013698,2]
[384242894,1757306702792,-481.77308335,0.00013698,2]
[384242895,1757306702815,-487.29613551,0.00013698,2]
[384242896,1757306702837,-481.39996613,0.00013698,2]
[384242897,1757306702859,-487.0947521,0.00013698,2]
[384242898,1757306702881,-482.69981886,0.00013698,2]
[384242899,1757306702904,-561.0,0.00013698,2]
[384242900,1757306702926,-482.27346856,0.00013698,2]
[384242901,1757306702949,-485.56879851,0.00013698,2]
[384242902,1757306702972,-480.0,0.00013698,2]
[384242903,1757306702996,-480.86378441,0.00013698,2]
[384242904,1757306703019,-486.65511866,0.00013698,2]
[384242905,1757306703045,-480.0,0.00013698,2]
[384242906,1757306703069,-483.50913754,0.00013698,2]
[384242907,1757306703092,-482.06635691,0.00013698,2]
[384242908,1757306703115,-482.04266058,0.00013698,2]
[384242909,1757306703138,-481.71233672,0.00013698,2]
[384242910,1757306703160,-332.18240168,0.00013698,2]
[384242911,1757306703182,-484.75368246,0.00013698,2]
[384242912,1757306703204,-483.46001385,0.00013698,2]
[384242913,1757306703227,-480.0,0.00013698,2]
[384242914,1757306703250,-574.98,0.00013698,2]
[384242915,1757306703272,-481.41982303,0.00013698,2]
[384242916,1757306703295,-485.55478675,0.00013698,2]
[384242917,1757306703318,-481.97093735,0.00013698,2]
[384242918,1757306703341,-480.0,0.00013698,2]
[384242919,1757306703367,-481.26069902,0.00013698,2]
[384242920,1757306703390,-483.29883609,0.00013698,2]
[384242921,1757306703416,-480.0,0.00013698,2]
[384242922,1757306703441,-484.89584629,0.00013698,2]
[384242923,1757306703464,-8203.75902634,0.00013698,2]
[384242924,1757306703749,-1489.80097366,0.00013698,2]
[384242925,1757306703776,-482.41632855,0.00013698,2]
[384242926,1757306703805,-487.68773937,0.00013698,2]
[384242927,1757306703833,-500.0,0.00013698,2]
[384242928,1757306703863,-678.19,0.00013698,2]
[384242929,1757306703892,-500.0,0.00013698,2]
[384242930,1757306703921,-480.0,0.00013698,2]
[384242931,1757306703950,-263.81991684,0.00013698,2]
[384242932,1757306703984,-236.18008316,0.00013698,2]
[384242933,1757306704012,-500.0,0.00013698,2]
[384242934,1757306704041,-513.27063067,0.00013698,2]
[384242935,1757306704070,-483.21652975,0.00013698,2]
[384242936,1757306704101,-482.45990539,0.00013698,2]
[384242937,1757306704240,-510.07,0.00013698,2]
[384242938,1757306704270,-481.99785398,0.00013698,2]
[384242939,1757306704299,-484.53319869,0.00013698,2]
[384242940,1757306704329,-482.91256193,0.00013698,2]
[384242941,1757306704360,-483.30622859,0.00013698,2]
[384242942,1757306704388,-203.07734358,0.00013698,2]
[384242943,1757306704426,-277.96132852,0.00013698,2]
[384242944,1757306704457,-481.1272992,0.00013698,2]
[384242945,1757306704485,-484.69629955,0.00013698,2]
[384242946,1757306704513,-1053.85,0.00013698,2]
[384242947,1757306704547,-484.91859723,0.00013698,2]
[384242948,1757306704580,-485.90112576,0.00013698,2]
[384242949,1757306704609,-482.39915284,0.00013698,2]
[384242950,1757306704638,-482.21997972,0.00013698,2]
[384242951,1757306704667,-485.07927494,0.00013698,2]
[384242952,1757306704695,-80.16751761,0.00013698,2]
[384242953,1757306704727,-403.36884926,0.00013698,2]
[384242954,1757306704759,-480.0,0.00013698,2]
[384242955,1757306704789,-965.46,0.00013698,2]
[384242956,1757306704817,-480.0,0.00013698,2]
[384242957,1757306704847,-480.0,0.00013698,2]
[384242958,1757306704875,-482.20345293,0.00013698,2]
[384242959,1757306704906,-921.15,0.00013698,2]
[384242960,1757306704935,-480.97095658,0.00013698,2]
[384242961,1757306704966,-122.65389755,0.00013698,2]
[384242962,1757306704999,-368.39568736,0.00013698,2]
[384242963,1757306705028,-482.54577572,0.00013698,2]
[384242964,1757306705063,-1250.72,0.00013698,2]
[384242965,1757306705096,-482.6336897,0.00013698,2]
[384242966,1757306705126,-480.0,0.00013698,2]
[384242967,1757306705157,-480.0,0.00013698,2]
[384242968,1757306705188,-482.34956202,0.00013698,2]
[384242969,1757306705219,-480.0,0.00013698,2]
[384242970,1757306705249,-423.9705704,0.00013698,2]
[384242971,1757306705283,-138.7794296,0.00013698,2]
[384242972,1757306705313,-481.78310247,0.00013698,2]
[384242973,1757306705342,-682.16,0.00013698,2]
[384242974,1757306705375,-627.90112269,0.00013698,2]
[384242975,1757306705403,-482.61060257,0.00013698,2]
[384242976,1757306705434,-481.12341374,0.00013698,2]
[384242977,1757306705463,-480.0,0.00013698,2]
[384242978,1757306705491,-482.86267084,0.00013698,2]
[384242979,1757306705521,-483.60960505,0.00013698,2]
[384242980,1757306705550,-480.0,0.00013698,2]
[384242981,1757306705673,-480.27096398,0.00013698,2]
[384242982,1757306705702,-754.94,0.00013698,2]
[384242983,1757306705731,-657.34,0.00013698,2]
[384242984,1757306705761,-480.0,0.00013698,2]
[384242985,1757306705792,-484.87996182,0.00013698,2]
[384242986,1757306705821,-484.18988203,0.00013698,2]
[384242987,1757306705943,-538.43,0.00013698,2]
[384242988,1757306705972,-480.0,0.00013698,2]
[384242989,1757306706000,-481.59780803,0.00013698,2]
[384242990,1757306706029,-158.21876828,0.00013698,2]
[384242991,1757306706062,-0.27523172,0.00013698,2]
[384242992,1757306706090,-490.75367812,0.00013698,2]
[384242993,1757306706119,-484.68852537,0.00013698,2]
[384242994,1757306706149,-480.0,0.00013698,2]
[384242995,1757306706178,-480.0,0.00013698,2]
[384242996,1757306706207,-1389.75,0.00013698,2]
[384242997,1757306706236,-489.44652936,0.00013698,2]
[384242998,1757306706266,-483.04445393,0.00013698,2]
[384242999,1757306706298,-483.04823149,0.00013698,2]
[384243000,1757306706338,-480.0,0.00013698,2]
[384243001,1757306706370,-483.66661136,0.00013698,2]
[384243002,1757306706402,-502.31883609,0.00013698,2]
[384243003,1757306706432,-480.60064145,0.00013698,2]
[384243004,1757306706462,-480.0,0.00013698,2]
[384243005,1757306706492,-482.13729039,0.00013698,2]
[384243006,1757306706521,-504.33728506,0.00013698,2]
[384243007,1757306706553,-335.0986713,0.00013698,2]
[384243008,1757306706589,-2503.6913287,0.00013698,2]
[384243009,1757306706617,-494.14238598,0.00013698,2]
[384243010,1757306706646,-480.0,0.00013698,2]
[384243011,1757306706676,-480.0,0.00013698,2]
[384243012,1757306706707,-480.0,0.00013698,2]
[384243013,1757306706736,-480.0,0.00013698,2]
[384243024,1757306913246,417.53747557,0.00013133,2]
[384243068,1757307031830,-775.72704535,0.00013266,2]
[384243070,1757307031841,-350.87898618,0.00013266,2]
[384243073,1757307031851,-949.83893254,0.000134,2]
[384243075,1757307031864,-682.16106746,0.000134,2]
[384243077,1757307031873,-1196.47838103,0.00013597,2]
[384243079,1757307031884,-3.52161897,0.00013597,2]
[384243081,1757307031895,-381.88463844,0.00013598,2]
[384243083,1757307031904,-375.25957413,0.00013598,2]
[384243085,1757307031916,-333.46923112,0.00013598,2]
[384243088,1757307031927,-371.65478431,0.00013598,2]
[384243089,1757307031939,-4396.99999998,0.00013598,2]
[384243092,1757307031950,-435.80986053,0.00013598,2]
[384243093,1757307031960,-300.0,0.00013697,2]
[384243095,1757307031969,-482.27491051,0.00013698,2]
[384243096,1757307031978,-480.0,0.00013698,2]
[384243097,1757307031987,-481.66869417,0.00013698,2]
[384243099,1757307031997,-485.97548038,0.00013698,2]
[384243101,1757307032006,-481.21674007,0.00013698,2]
[384243102,1757307032016,-480.0,0.00013698,2]
[384243104,1757307032025,-484.19888303,0.00013698,2]
[384243105,1757307032034,-482.86334931,0.00013698,2]
[384243106,1757307032044,-484.60731759,0.00013698,2]
[384243108,1757307032053,-482.59763591,0.00013698,2]
[384243109,1757307032063,-480.0,0.00013698,2]
[384243110,1757307032073,-484.71577103,0.00013698,2]
[384243111,1757307032082,-484.13677698,0.00013698,2]
[384243112,1757307032091,-481.9364659,0.00013698,2]
[384243113,1757307032101,-484.78246525,0.00013698,2]
[384243114,1757307032110,-484.69285329,0.00013698,2]
[384243115,1757307032119,-215.91384335,0.00013698,2]
[384243148,1757307037871,-500.0,0.00013697,2]
[384243150,1757307037882,-30.64083125,0.00013697,2]
[384243152,1757307037895,-386.97192348,0.00013697,2]
[384243155,1757307037906,-264.08615665,0.00013698,2]
[384243157,1757307037917,-480.0,0.00013698,2]
[384243158,1757307037927,-489.33947441,0.00013698,2]
[384243161,1757307037938,-309.77366346,0.00013698,2]
[384243357,1757307039824,-179.50067011,0.00013698,2]
[384243359,1757307039833,-105.26128278,0.00013698,2]
[384243365,1757307039881,-374.73871722,0.00013698,2]
[384243367,1757307039892,-58.59283447,0.00013698,2]
[384243683,1757307043019,-424.2906402,0.00013698,2]
[384243685,1757307043029,-480.0,0.00013698,2]
[384243687,1757307043039,-715.61,0.00013698,2]
[384243689,1757307043048,-484.01854843,0.00013698,2]
[384243691,1757307043057,-482.66619675,0.00013698,2]
[384243693,1757307043067,-480.0,0.00013698,2]
[384243695,1757307043076,-480.0,0.00013698,2]
[384243698,1757307043085,-480.0,0.00013698,2]
[384243700,1757307043094,-480.0,0.00013698,2]
[384243704,1757307043104,-480.0,0.00013698,2]
[384243706,1757307043114,-480.0,0.00013698,2]
[384243708,1757307043123,-484.88316559,0.00013698,2]
[384243710,1757307043132,-485.82936598,0.00013698,2]
[384243712,1757307043142,-778.42345466,0.00013698,2]
[384243714,1757307043151,-524.69628485,0.00013698,2]
[384243716,1757307043161,-481.3282373,0.00013698,2]
[384243718,1757307043170,-481.98312218,0.00013698,2]
[384243720,1757307043180,-480.0,0.00013698,2]
[384243723,1757307043189,-480.0,0.00013698,2]
[384243725,1757307043198,-480.0,0.00013698,2]
[384243727,1757307043208,-493.51721017,0.00013698,2]
[384243729,1757307043217,-480.0,0.00013698,2]
[384243731,1757307043227,-592.72139126,0.00013698,2]
[384243734,1757307043236,-486.73737436,0.00013698,2]
[384243735,1757307043245,-483.21918246,0.00013698,2]
[384243737,1757307043254,-480.0,0.00013698,2]
[384243740,1757307043264,-482.67994199,0.00013698,2]
[384243742,1757307043273,-744.26,0.00013698,2]
[384243744,1757307043282,-480.0,0.00013698,2]
[384243746,1757307043292,-529.03,0.00013698,2]
[384243748,1757307043301,-480.0,0.00013698,2]
[384243750,1757307043310,-950.8220812,0.00013698,2]
[384243752,1757307043320,-620.03,0.00013698,2]
[384243754,1757307043329,-485.67378267,0.00013698,2]
[384243756,1757307043338,-480.0,0.00013698,2]
[384243757,1757307043348,-480.0,0.00013698,2]
[384243760,1757307043357,-500.0,0.00013698,2]
[384243761,1757307043367,-480.0,0.00013698,2]
[384243763,1757307043377,-1020.93,0.00013698,2]
[384243765,1757307043386,-2720.51,0.00013698,2]
[384243767,1757307043396,-480.0,0.00013698,2]
[384243770,1757307043405,-484.50311874,0.00013698,2]
[384243771,1757307043415,-372.22982038,0.00013698,2]
[384243773,1757307043424,-488.05,0.00013698,2]
[384243776,1757307043433,-480.0,0.00013698,2]
[384243777,1757307043443,-480.0,0.00013698,2]
[384243779,1757307043452,-501.44399386,0.00013698,2]
[384243781,1757307043463,-486.4170284,0.00013698,2]
[384243783,1757307043475,-500.0,0.00013698,2]
[384243786,1757307043484,-312.41277736,0.00013698,2]
[384243788,1757307043494,-480.0,0.00013698,2]
[384243790,1757307043505,-480.0,0.00013698,2]
[384243792,1757307043515,-480.0,0.00013698,2]
[384243794,1757307043524,-1151.21,0.00013698,2]
[384243796,1757307043533,-480.0,0.00013698,2]
[384243798,1757307043542,-480.0,0.00013698,2]
[384243799,1757307043551,-1626.39,0.00013698,2]
[384243801,1757307043560,-1269.37,0.00013698,2]
[384243803,1757307043570,-2076.79,0.00013698,2]
[384243805,1757307043579,-486.99059058,0.00013698,2]
[384243807,1757307043588,-480.0,0.00013698,2]
[384243809,1757307043598,-784.64158719,0.00013698,2]
[384255660,1757307249897,480.0,0.00024657,120]
[384255661,1757307266139,196.09010063,0.00027397,120]
[384255663,1757307420110,500.0,0.00013171,2]
[384255667,1757307845135,228000.0,0.0002739,120]
[384255668,1757308191035,180.0,0.00013171,2]
[384255674,1757308232059,-305.50771076,0.00013597,2]
[384255675,1757308232069,-263.37228924,0.00013597,2]
[384255708,1757308238088,-1303.33956061,0.00013597,2]
[384255710,1757308238099,-305.50771072,0.00013666,2]
[384255712,1757308238108,-500.0,0.00013673,2]
[384255714,1757308238118,-1200.0,0.00013696,2]
[384255716,1757308238128,-300.0,0.00013696,2]
[384255718,1757308238138,-17900.22764415,0.00013697,2]
[384255721,1757308238150,-5288.79441503,0.00013697,2]
[384256187,1757308243047,-1941.53167463,0.00013697,2]
[384256189,1757308243057,-500.0,0.00013697,2]
[384256191,1757308243066,-184.8533117,0.00013697,2]
[384256196,1757308243103,-315.1466883,0.00013697,2]
[384256197,1757308243112,-502.5216559,0.00013697,2]
[384256200,1757308243122,-350.36177581,0.00013697,2]
[384256202,1757308243132,-500.0,0.00013697,2]
[384256204,1757308243141,-500.0,0.00013697,2]
[384256205,1757308243152,-500.0,0.00013697,2]
[384256208,1757308243161,-230.36720401,0.00013697,2]
[384256209,1757308243171,-500.0,0.00013697,2]
[384256212,1757308243180,-500.0,0.00013697,2]
[384256214,1757308243189,-500.0,0.00013697,2]
[384256215,1757308243199,-500.0,0.00013697,2]
[384256217,1757308243208,-500.0,0.00013697,2]
[384256219,1757308243218,-180.09741205,0.00013697,2]
[384256221,1757308243227,-500.0,0.00013697,2]
[384256223,1757308243236,-500.0,0.00013697,2]
[384256225,1757308243246,-500.0,0.00013697,2]
[384256227,1757308243255,-500.0,0.00013697,2]
[384256229,1757308243264,-500.0,0.00013697,2]
[384256231,1757308243273,-500.0,0.00013697,2]
[384256233,1757308243282,-500.0,0.00013697,2]
[384256235,1757308243291,-500.0,0.00013697,2]
[384256237,1757308243301,-500.0,0.00013697,2]
[384256239,1757308243310,-493.3182732,0.00013697,2]
[384256241,1757308243319,-500.0,0.00013697,2]
[384256243,1757308243328,-247.48489641,0.00013697,2]
[384256245,1757308243338,-500.0,0.00013697,2]
[384256247,1757308243347,-358.34872228,0.00013697,2]
[384256249,1757308243357,-500.0,0.00013697,2]
[384256251,1757308243366,-468.31677049,0.00013697,2]
[384256253,1757308243380,-500.0,0.00013697,2]
[384256255,1757308243389,-500.0,0.00013697,2]
[384256257,1757308243398,-500.0,0.00013697,2]
[384256259,1757308243407,-500.0,0.00013697,2]
[384256261,1757308243418,-300.0,0.00013697,2]
[384256263,1757308243427,-999.36763505,0.00013697,2]
[384256265,1757308243436,-500.0,0.00013697,2]
[384256267,1757308243446,-500.0,0.00013697,2]
[384256270,1757308243458,-500.0,0.00013697,2]
[384256271,1757308243467,-500.0,0.00013697,2]
[384256274,1757308243476,-500.0,0.00013697,2]
[384256276,1757308243488,-500.0,0.00013697,2]
[384256278,1757308243497,-500.0,0.00013697,2]
[384256280,1757308243507,-500.0,0.00013697,2]
[384256281,1757308243519,-500.0,0.00013697,2]
[384256283,1757308243528,-500.0,0.00013697,2]
[384256285,1757308243538,-500.0,0.00013697,2]
[384256288,1757308243548,-500.0,0.00013697,2]
[384256290,1757308243559,-500.0,0.00013697,2]
[384256291,1757308243570,-500.0,0.00013697,2]
[384256293,1757308243579,-500.0,0.00013697,2]
[384256296,1757308243589,-500.0,0.00013697,2]
[384256298,1757308243598,-500.0,0.00013697,2]
[384256300,1757308243608,-461.91453591,0.00013697,2]
[384256302,1757308243617,-500.0,0.00013697,2]
[384256304,1757308243627,-500.0,0.00013697,2]
[384256306,1757308243638,-500.0,0.00013697,2]
[384256307,1757308243648,-500.0,0.00013697,2]
[384256309,1757308243659,-500.0,0.00013697,2]
[384256311,1757308243668,-500.0,0.00013697,2]
[384256313,1757308243677,-500.0,0.00013697,2]
[384256315,1757308243686,-500.0,0.00013697,2]
[384256317,1757308243696,-630.0,0.00013697,2]
[384256319,1757308243705,-500.0,0.00013697,2]
[384256321,1757308243715,-178.10566845,0.00013697,2]
[384256323,1757308243724,-500.0,0.00013697,2]
[384256325,1757308243733,-500.0,0.00013697,2]
[384256327,1757308243742,-500.0,0.00013697,2]
[384256329,1757308243751,-500.0,0.00013697,2]
[384256331,1757308243761,-500.0,0.00013697,2]
[384256333,1757308243770,-500.0,0.00013697,2]
[384256335,1757308243779,-500.0,0.00013697,2]
[384256337,1757308243788,-500.0,0.00013697,2]
[384256340,1757308243797,-500.0,0.00013697,2]
[384256342,1757308243806,-559.65344104,0.00013697,2]
[384256343,1757308243815,-500.0,0.00013697,2]
[384256345,1757308243824,-276.93122945,0.00013697,2]
[384256348,1757308243834,-500.0,0.00013697,2]
[384256349,1757308243845,-500.0,0.00013697,2]
[384256352,1757308243855,-500.0,0.00013697,2]
[384256354,1757308243865,-500.0,0.00013697,2]
[384256356,1757308243874,-500.0,0.00013697,2]
[384256358,1757308243884,-500.0,0.00013697,2]
[384256359,1757308243894,-500.0,0.00013697,2]
[384256362,1757308243903,-500.0,0.00013697,2]
[384256364,1757308243913,-500.0,0.00013697,2]
[384256365,1757308243922,-310.73194655,0.00013697,2]
[384256367,1757308243931,-500.0,0.00013697,2]
[384256369,1757308243941,-500.0,0.00013697,2]
[384256371,1757308243950,-500.0,0.00013697,2]
[384256373,1757308243960,-500.0,0.00013697,2]
[384256375,1757308243969,-432.80669595,0.00013697,2]
[384256377,1757308243979,-608.41068597,0.00013697,2]
[384256380,1757308243988,-492.39717556,0.00013697,2]
[384256382,1757308243998,-151.0,0.00013697,2]
[384256384,1757308244007,-151.0,0.00013697,2]
[384256386,1757308244017,-151.0,0.00013697,2]
[384256388,1757308244026,-389.21172733,0.00013698,2]
[384256390,1757308244035,-480.0,0.00013698,2]
[384256392,1757308244045,-481.84065001,0.00013698,2]
[384256394,1757308244054,-480.0,0.00013698,2]
[384256396,1757308244063,-482.27565353,0.00013698,2]
[384256397,1757308244072,-480.0,0.00013698,2]
[384256399,1757308244082,-480.0,0.00013698,2]
[384256401,1757308244091,-567.59001659,0.00013698,2]
[384256403,1757308244100,-480.0,0.00013698,2]
[384256406,1757308244110,-480.0,0.00013698,2]
[384256408,1757308244120,-480.0,0.00013698,2]
[384256422,1757308244251,-481.97922568,0.00013698,2]
[384256424,1757308244262,-484.47564463,0.00013698,2]
[384256426,1757308244271,-480.59815359,0.00013698,2]
[384256428,1757308244281,-480.0,0.00013698,2]
[384256430,1757308244291,-480.0,0.00013698,2]
[384256432,1757308244300,-480.0,0.00013698,2]
[384256434,1757308244310,-486.00365144,0.00013698,2]
[384256436,1757308244319,-480.0,0.00013698,2]
[384256438,1757308244330,-482.04942485,0.00013698,2]
[384256440,1757308244340,-482.75418755,0.00013698,2]
[384256442,1757308244350,-480.0,0.00013698,2]
[384256444,1757308244361,-480.0,0.00013698,2]
[384256446,1757308244375,-483.9558612,0.00013698,2]
[384256448,1757308244386,-480.0,0.00013698,2]
[384256450,1757308244396,-480.0,0.00013698,2]
[384256452,1757308244405,-480.26101592,0.00013698,2]
[384256454,1757308244415,-483.25541832,0.00013698,2]
[384256456,1757308244424,-489.4387338,0.00013698,2]
[384256459,1757308244433,-480.0,0.00013698,2]
[384256460,1757308244443,-480.0,0.00013698,2]
[384256462,1757308244455,-481.28200937,0.00013698,2]
[384256464,1757308244464,-480.0,0.00013698,2]
[384256467,1757308244474,-480.0,0.00013698,2]
[384256468,1757308244483,-491.4793423,0.00013698,2]
[384256470,1757308244492,-480.0,0.00013698,2]
[384256472,1757308244501,-480.0,0.00013698,2]
[384256474,1757308244511,-480.0,0.00013698,2]
[384256476,1757308244520,-480.0,0.00013698,2]
[384256478,1757308244529,-480.0,0.00013698,2]
[384256480,1757308244538,-480.0,0.00013698,2]
[384256482,1757308244547,-158.49421227,0.00013698,2]
[384256484,1757308244556,-480.0,0.00013698,2]
[384256486,1757308244565,-480.0,0.00013698,2]
[384256488,1757308244574,-485.0186868,0.00013698,2]
[384256490,1757308244584,-300.96574831,0.00013698,2]
[384256493,1757308244593,-480.0,0.00013698,2]
[384256494,1757308244602,-480.0,0.00013698,2]
[384256496,1757308244611,-480.0,0.00013698,2]
[384256499,1757308244621,-530.22,0.00013698,2]
[384256500,1757308244630,-480.0,0.00013698,2]
[384256503,1757308244639,-526.28512892,0.00013698,2]
[384256505,1757308244648,-480.0,0.00013698,2]
[384256506,1757308244658,-484.27594728,0.00013698,2]
[384256508,1757308244668,-480.0,0.00013698,2]
[384256510,1757308244677,-480.0,0.00013698,2]
[384256513,1757308244686,-480.0,0.00013698,2]
[384256514,1757308244695,-556.5074127,0.00013698,2]
[384256516,1757308244704,-480.0,0.00013698,2]
[384256518,1757308244714,-502.51,0.00013698,2]
[384256521,1757308244724,-476.01887152,0.00013698,2]
[384256522,1757308244733,-488.09298535,0.00013698,2]
[384256525,1757308244742,-484.02429534,0.00013698,2]
[384256527,1757308244752,-481.82427844,0.00013698,2]
[384256529,1757308244762,-486.44849399,0.00013698,2]
[384256530,1757308244771,-484.43315976,0.00013698,2]
[384256533,1757308244780,-484.58551155,0.00013698,2]
[384256534,1757308244789,-480.0,0.00013698,2]
[384256537,1757308244799,-480.0,0.00013698,2]
[384256538,1757308244808,-480.0,0.00013698,2]
[384256540,1757308244817,-344.79916193,0.00013698,2]
[384256542,1757308244827,-480.0,0.00013698,2]
[384256544,1757308244838,-480.0,0.00013698,2]
[384256546,1757308244847,-482.88821675,0.00013698,2]
[384256548,1757308244857,-484.09140959,0.00013698,2]
[384256550,1757308244866,-486.54643798,0.00013698,2]
[384256552,1757308244875,-486.26866169,0.00013698,2]
[384256554,1757308244887,-480.0,0.00013698,2]
[384256557,1757308244897,-480.0,0.00013698,2]
[384256558,1757308244906,-490.83860205,0.00013698,2]
[384256561,1757308244916,-480.0,0.00013698,2]
[384256563,1757308244925,-488.55,0.00013698,2]
[384256565,1757308244935,-515.40489491,0.00013698,2]
[384256566,1757308244944,-480.0,0.00013698,2]
[384256568,1757308244954,-489.22384003,0.00013698,2]
[384256570,1757308244963,-480.0,0.00013698,2]
[384256572,1757308244972,-480.0,0.00013698,2]
[384256574,1757308244981,-486.16292327,0.00013698,2]
[384256576,1757308244991,-480.0,0.00013698,2]
[384256577,1757308245001,-1198.61,0.00013698,2]
[384256578,1757308245011,-483.24665026,0.00013698,2]
[384256579,1757308245020,-551.02,0.00013698,2]
[384256580,1757308245030,-480.0,0.00013698,2]
[384256581,1757308245039,-433.08725947,0.00013698,2]
[384256582,1757308245048,-480.0,0.00013698,2]
[384256583,1757308245058,-480.0,0.00013698,2]
[384256584,1757308245067,-480.0,0.00013698,2]
[384256585,1757308245077,-480.0,0.00013698,2]
[384256586,1757308245087,-178.68274596,0.00013698,2]
[384256587,1757308245096,-1009.94,0.00013698,2]
[384256588,1757308245106,-480.0,0.00013698,2]
[384256589,1757308245117,-485.5945607,0.00013698,2]
[384256590,1757308245127,-467.38732919,0.00013698,2]
[384256591,1757308245136,-480.0,0.00013698,2]
[384256592,1757308245146,-480.0,0.00013698,2]
[384256593,1757308245155,-41.45452672,0.00013698,2]
[384257499,1757308413118,480.0,0.00024657,120]
[384257502,1757308703137,300.0,0.00013062,2]
[384257503,1757308750162,177.0,0.000273,120]
[384257504,1757308770284,177.0,0.000273,120]
[384257505,1757308832979,300.0,0.00013062,2]
[384257506,1757308900284,1000.0,0.00025,30]
[384257507,1757309061097,372.0,0.0001311,2]
[384257510,1757309129333,352.54,0.00012329,2]
[384257511,1757309139937,293.78,0.00012329,2]
[384257512,1757309150370,244.82,0.00012329,2]
[384257515,1757309160769,204.01,0.00012329,2]
[384257517,1757309168282,500.0,0.00027397,120]
[384257518,1757309171170,170.01,0.00012329,2]
[384257528,1757309221677,-372.0,0.00013242,2]
[384257529,1757309221707,-372.0,0.00013376,2]
[384257530,1757309221737,-372.0,0.00013559,2]
[384257531,1757309221769,-372.0,0.00013559,2]
[384257532,1757309221798,-363.1180299,0.00013598,2]
[384257533,1757309221828,-1451.21024741,0.00013598,2]
[384257534,1757309221858,-177.39038626,0.000136,3]
[384257535,1757309221892,-372.0,0.0001361,2]
[384257536,1757309221923,-168.0,0.00013611,2]
[384257537,1757309221955,-372.0,0.00013612,2]
[384257538,1757309221988,-372.0,0.00013651,2]
[384257539,1757309222018,-138.57267286,0.00013695,2]
[384257540,1757309222417,-195.42732714,0.00013695,2]
[384257541,1757309222446,-3060.4491129,0.00013696,2]
[384257542,1757309222477,-500.0,0.00013697,2]
[384257543,1757309222509,-500.0,0.00013697,2]
[384257544,1757309222540,-500.0,0.00013697,2]
[384257546,1757309242737,850.09,0.00012329,2]
[384257547,1757309245275,850.09,0.00012205,2]
[384257597,1757309432381,-3130.46708757,0.00013399,2]
[384257598,1757309432392,-1269.80896651,0.00013414,2]
[384257599,1757309432401,-300.0,0.00013499,2]
[384257600,1757309432410,-17708.25620479,0.000135,2]
[384257627,1757309438167,-158.39895165,0.00013499,2]
[384257628,1757309438179,-500.0,0.00013499,2]
[384257629,1757309438189,-500.0,0.00013499,2]
[384257630,1757309438199,-500.0,0.00013499,2]
[384257631,1757309438208,-500.0,0.00013499,2]
[384257632,1757309438217,-302.33007067,0.00013499,2]
[384257633,1757309438278,-197.66992933,0.00013499,2]
[384257634,1757309438288,-500.0,0.00013499,2]
[384257635,1757309438297,-224.32536025,0.00013499,2]
[384257636,1757309438307,-193.20508504,0.00013499,2]
[384257637,1757309438316,-500.0,0.00013499,2]
[384257638,1757309438327,-500.0,0.00013499,2]
[384257639,1757309438337,-565.96541243,0.00013499,2]
[384257640,1757309438347,-500.0,0.00013499,2]
[384257641,1757309438361,-500.0,0.00013499,2]